bitfinex/quotes_SOLUSD_20241008
["timestamp","ask_amount","ask_price","bid_price","bid_amount"]
[1728388347685,6.9213,144.48,144.44,37.14227337]
[1728388347887,6.9213,144.48,144.45,1.3843011]
[1728388348293,6.9213,144.48,144.44,37.14227337]
[1728388350093,20.25098,144.51,144.44,17.3072]
[1728388350094,6.9218,144.47,144.44,17.3072]
[1728388350284,6.9227,144.46,144.42,6.9241]
[1728388350488,6.9228,144.45,144.42,6.9241]
[1728388350997,6.9225,144.46,144.43,1.3845702]
[1728388351293,0.12549,144.47,144.44,6.9232]
[1728388351476,7.04739,144.47,144.43,38.52934357]
[1728388351977,7.04739,144.47,144.44,1.38448893]
[1728388358208,7.04739,144.47,144.36,44.00838113]
[1728388358209,6.9238,144.43,144.4,24.2369]
[1728388358385,6.9238,144.43,144.4,17.3121]
[1728388369613,6.9245,144.42,144.38,6.926]
[1728388371526,6.9233,144.44,144.41,6.9247]
[1728388371698,6.9233,144.44,144.42,1.38464214]
[1728388372808,6.9238,144.43,144.39,37.15157337]
[1728388374500,6.9238,144.43,144.39,24.2396]
[1728388375400,6.9238,144.43,144.4,1.3847585]
[1728388375801,6.9238,144.43,144.4,8.3098585]
[1728388376002,0.25098,144.46,144.4,1.3847585]
[1728388376203,6.9232,144.44,144.4,8.3097585]
[1728388378906,6.924,144.43,144.4,5.17829376]
[1728388379108,6.924,144.43,144.4,1.3847585]
[1728388379633,6.924,144.43,144.4,5.18097746]
[1728388380626,6.924,144.43,144.4,5.18293684]
[1728388381333,6.924,144.43,144.4,3.79817834]
[1728388382122,0.12549,144.46,144.4,3.79817834]
[1728388382326,6.9243,144.42,144.4,3.79817834]
[1728388382519,6.9243,144.42,144.39,3.79817834]
[1728388382830,6.9243,144.42,144.4,3.79817834]
[1728388383021,6.9243,144.42,144.39,3.79817834]
[1728388383208,6.9247,144.41,144.4,3.79817834]
[1728388383412,6.9247,144.41,144.38,3.79817834]
[1728388383611,6.9247,144.41,144.39,3.79817834]
[1728388383811,6.9247,144.41,144.38,3.79817834]
[1728388384013,6.9247,144.41,144.39,3.79817834]
[1728388384213,0.12549,144.44,144.38,3.79817834]
[1728388384424,6.9252,144.4,144.39,3.79817834]
[1728388384625,6.9252,144.4,144.38,3.79817834]
[1728388384824,6.9256,144.39,144.37,15.8923]
[1728388385022,6.9264,144.38,144.35,6.9275]
[1728388385326,6.9264,144.38,144.35,10.73220077]
[1728388385527,6.9258,144.39,144.35,10.73220077]
[1728388385830,6.9262,144.38,144.35,10.73220077]
[1728388386132,6.9262,144.38,144.35,6.9275]
[1728388386332,6.9262,144.38,144.34,27.09870077]
[1728388389024,6.9262,144.38,144.35,6.9275]
[1728388389242,6.9257,144.39,144.36,1.38514803]
[1728388391138,6.9257,144.39,144.36,8.31214803]
[1728388392038,6.9253,144.4,144.36,8.31214803]
[1728388392212,0.12549,144.42,144.36,14.2971214]
[1728388392419,20.25098,144.43,144.38,6.9259]
[1728388392739,20.25098,144.43,144.39,1.3849636]
[1728388393738,6.9247,144.41,144.39,1.3849636]
[1728388393922,6.9247,144.41,144.38,1.38496381]
[1728388396159,6.9246,144.42,144.38,6.9261]
[1728388397140,6.9246,144.42,144.39,1.38484729]
[1728388398038,6.9239,144.43,144.4,1.38482093]
[1728388400531,6.9239,144.43,144.39,52.45347337]
[1728388401557,6.9239,144.43,144.4,1.38472678]
[1728388401760,6.9235,144.44,144.4,8.30972678]
[1728388402342,6.9235,144.44,144.4,6.925]
[1728388402662,6.9237,144.43,144.39,32.6159]
[1728388402834,6.9237,144.43,144.39,39.5414]
[1728388404281,6.9237,144.43,144.4,1.38469895]
[1728388405354,6.9237,144.43,144.39,39.5414]
[1728388405774,6.9237,144.43,144.4,6.9252]
[1728388407867,6.9237,144.43,144.41,1.38469855]
[1728388408273,6.9231,144.45,144.42,1.38469692]
[1728388409371,6.9231,144.45,144.43,1.3845383]
[1728388410464,6.9231,144.45,144.42,1.38453846]
[1728388410867,6.9233,144.44,144.41,6.9246]
[1728388411469,6.9237,144.43,144.4,6.9251]
[1728388412656,6.9237,144.43,144.41,1.38469681]
[1728388416282,20.0,144.46,144.41,38.53257018]
[1728388416610,6.9228,144.45,144.42,19.83607337]
[1728388416762,6.9228,144.45,144.42,6.9241]
[1728388417900,0.12549,144.48,144.4,19.83677337]
[1728388417901,0.12549,144.47,144.4,19.83677337]
[1728388418060,0.12549,144.47,144.39,35.13907337]
[1728388418061,6.9238,144.43,144.39,35.13907337]
[1728388418393,6.9238,144.43,144.39,22.2271]
[1728388418576,6.9238,144.43,144.39,27.40137583]
[1728388418777,6.9238,144.43,144.4,6.9252]
[1728388418975,6.9238,144.43,144.39,27.40147583]
[1728388419591,17.43019,144.47,144.39,15.3018]
[1728388419592,6.9249,144.41,144.39,15.3018]
[1728388419896,17.3072,144.45,144.39,15.3018]
[1728388419897,6.9252,144.4,144.39,15.3018]
[1728388420189,17.3072,144.45,144.39,15.3018]
[1728388420397,6.9248,144.41,144.39,15.3018]
[1728388423608,6.9248,144.41,144.37,6.9263]
[1728388425289,20.12549,144.44,144.36,16.72096322]
[1728388425598,6.9253,144.4,144.36,23.64786073]
[1728388425804,6.9253,144.4,144.36,19.83887337]
[1728388427106,20.12549,144.44,144.36,12.91197337]
[1728388427310,6.9258,144.39,144.35,52.17957337]
[1728388427612,41.086484,144.43,144.36,5.17778196]
[1728388427900,6.9266,144.37,144.35,15.0223]
[1728388428106,6.9263,144.38,144.35,15.0223]
[1728388428781,6.9263,144.38,144.35,27.93427337]
[1728388430729,6.9263,144.38,144.36,1.38516619]
[1728388431239,6.9263,144.38,144.35,34.86187337]
[1728388434641,6.9263,144.38,144.35,15.0223]
[1728388435323,6.9263,144.38,144.34,37.15997337]
[1728388435527,6.9266,144.37,144.34,17.3201]
[1728388436219,6.9266,144.37,144.34,18.70543767]
[1728388436423,6.9266,144.37,144.34,17.3201]
[1728388441835,6.9266,144.37,144.35,1.38536665]
[1728388442026,6.9264,144.38,144.35,14.29734002]
[1728388442222,6.9249,144.41,144.37,19.83857337]
[1728388442547,6.9249,144.41,144.38,1.38504819]
[1728388443641,6.9249,144.41,144.37,19.83857337]
[1728388444349,6.9249,144.41,144.38,1.38498353]
[1728388445250,6.9249,144.41,144.37,6.9266]
[1728388446546,6.9257,144.39,144.35,24.245]
[1728388448332,6.9262,144.38,144.35,17.3178]
[1728388448845,6.9262,144.38,144.35,24.2453]
[1728388450355,0.12549,144.41,144.35,24.2453]
[1728388450531,6.9258,144.39,144.35,24.2453]
[1728388451748,6.9258,144.39,144.35,37.15727337]
[1728388453136,6.9258,144.39,144.35,24.2453]
[1728388453652,6.9263,144.38,144.35,17.3178]
[1728388455029,6.9263,144.38,144.34,6.9279]
[1728388455555,6.9267,144.37,144.34,6.9279]
[1728388456063,6.9263,144.38,144.34,6.9279]
[1728388456722,17.3112,144.42,144.34,6.9279]
[1728388456723,17.3112,144.42,144.35,6.9272]
[1728388456837,6.9248,144.41,144.37,30.22827337]
[1728388457033,6.9248,144.41,144.37,37.15477337]
[1728388459738,6.9248,144.41,144.37,24.2428]
[1728388461966,6.9252,144.4,144.37,17.3163]
[1728388464207,6.9252,144.4,144.38,1.38504639]
[1728388464582,6.9245,144.42,144.38,8.31114639]
[1728388464950,6.9239,144.43,144.39,6.9256]
[1728388465282,6.9236,144.44,144.41,28.58207337]
[1728388465588,6.923,144.45,144.42,1.3846961]
[1728388466687,6.9225,144.46,144.42,8.3088961]
[1728388467559,6.9228,144.45,144.42,21.22086947]
[1728388468104,6.9228,144.45,144.42,14.29666947]
[1728388468311,6.9242,144.42,144.41,15.6701]
[1728388472900,44.027864,144.46,144.41,15.6701]
[1728388473215,6.9238,144.43,144.41,15.6701]
[1728388474007,24.027864,144.46,144.41,15.6701]
[1728388474188,6.9242,144.42,144.41,15.6701]
[1728388481604,24.027864,144.46,144.38,33.6523]
[1728388481912,6.9242,144.43,144.39,6.9255]
[1728388483727,24.027864,144.46,144.39,6.9255]
[1728388483728,6.9242,144.42,144.39,6.9255]
[1728388485018,6.9242,144.42,144.38,33.6523]
[1728388485204,6.9242,144.42,144.38,40.5782]
[1728388485511,6.9242,144.42,144.39,1.38483334]
[1728388485731,6.9238,144.43,144.39,8.31033334]
[1728388486021,6.9238,144.43,144.39,6.9255]
[1728388489039,6.9242,144.42,144.39,6.9255]
[1728388491124,0.12549,144.46,144.39,6.9255]
[1728388491311,255.5,144.58,144.55,6.9178]
[1728388491494,6.4107,144.73,144.57,19.82887337]
[1728388491495,21.95502618,144.72,144.57,19.82887337]
[1728388491702,21.95502618,144.72,144.58,12.91197337]
[1728388491902,21.95502618,144.72,144.58,14.29499321]
[1728388492203,21.95502618,144.72,144.59,6.9158]
[1728388492204,6.9132,144.65,144.59,6.9158]
[1728388492410,388.6,144.64,144.6,19.82747337]
[1728388492599,388.6,144.64,144.61,8.29786424]
[1728388492800,388.6,144.64,144.6,12.91197337]
[1728388493008,388.6,144.64,144.6,19.82747337]
[1728388493301,388.6,144.64,144.61,6.9149]
[1728388493507,388.6,144.64,144.6,6.9155]
[1728388495496,388.6,144.64,144.6,19.82747337]
[1728388496505,388.6,144.63,144.6,19.82747337]
[1728388498114,388.6,144.62,144.6,19.82747337]
[1728388498513,388.6,144.62,144.61,12.91197337]
[1728388498722,368.77252663,144.6,144.59,17.2902]
[1728388498929,368.77252663,144.6,144.59,30.20217337]
[1728388499803,0.12549,144.65,144.6,6.9155]
[1728388500005,0.12549,144.65,144.61,12.91197337]
[1728388500812,0.12549,144.65,144.62,12.91197337]
[1728388502020,0.12549,144.65,144.61,12.91197337]
[1728388504424,6.9141,144.63,144.59,17.2902]
[1728388505023,388.6,144.62,144.59,17.2902]
[1728388505333,388.6,144.62,144.6,12.91197337]
[1728388505538,388.6,144.61,144.6,12.91197337]
[1728388506425,0.12549,144.63,144.6,12.91197337]
[1728388506830,388.6,144.62,144.6,12.91197337]
[1728388507144,388.6,144.61,144.6,12.91197337]
[1728388507631,388.6,144.61,144.59,24.2062]
[1728388510226,388.6,144.6,144.59,24.2062]
[1728388512033,6.9142,144.63,144.59,17.2902]
[1728388512335,388.6,144.62,144.59,17.2902]
[1728388512544,6.9157,144.6,144.56,17.2932]
[1728388512834,0.12549,144.62,144.56,17.2932]
[1728388513037,44.027864,144.63,144.56,17.2932]
[1728388513240,6.9157,144.6,144.56,17.2932]
[1728388513539,6.9157,144.6,144.56,37.12257337]
[1728388515338,23.776884,144.63,144.57,28.00837337]
[1728388515536,6.9121,144.68,144.63,6.914]
[1728388515715,6.9113,144.69,144.65,19.82467337]
[1728388515916,275.191715,144.6,144.59,20.0]
[1728388516130,6.0842,144.7,144.59,32.91197337]
[1728388516131,6.9109,144.7,144.59,32.91197337]
[1728388516325,389.9825981,144.69,144.66,12.91197337]
[1728388516638,1.3825981,144.68,144.64,12.91197337]
[1728388516853,8.2944981,144.68,144.64,12.91197337]
[1728388518123,6.913,144.66,144.62,6.9142]
[1728388518319,1.3825981,144.68,144.59,20.0]
[1728388518320,6.9123,144.67,144.63,19.82597337]
[1728388518531,1.3825981,144.68,144.63,6.914]
[1728388518732,1.3825981,144.68,144.64,6.9134]
[1728388519028,1.3825981,144.68,144.64,8.29599045]
[1728388519826,8.2943981,144.68,144.64,8.29599045]
[1728388523745,6.9132,144.65,144.62,17.2862]
[1728388526155,1.3825981,144.68,144.62,17.2862]
[1728388526444,6.9123,144.67,144.63,27.00848427]
[1728388526637,6.9123,144.67,144.64,1.38259214]
[1728388526953,7.03769,144.68,144.64,8.29619214]
[1728388527252,8.2948981,144.67,144.64,1.38259214]
[1728388527449,8.2948981,144.67,144.63,27.00848427]
[1728388527744,8.2948981,144.67,144.63,6.914]
[1728388530354,8.2948981,144.67,144.63,8.29662131]
[1728388531327,6.9119,144.68,144.64,21.9289]
[1728388531555,6.9119,144.68,144.65,1.38251635]
[1728388531787,6.9119,144.68,144.64,21.9289]
[1728388533349,8.2948981,144.67,144.64,15.0153]
[1728388536358,1.3825981,144.67,144.64,15.0153]
[1728388536552,6.9128,144.66,144.64,15.0153]
[1728388537835,6.9124,144.67,144.64,15.0153]
[1728388540457,6.9132,144.65,144.64,15.0153]
[1728388540759,6.9132,144.65,144.62,17.2862]
[1728388541340,6.9132,144.65,144.62,30.14674032]
[1728388542349,6.9132,144.65,144.62,37.06134032]
[1728388545073,6.9137,144.64,144.6,35.26104032]
[1728388546368,6.9137,144.64,144.6,28.34564032]
[1728388546572,6.9137,144.64,144.61,6.9151]
[1728388546746,6.9137,144.64,144.61,19.77564032]
[1728388548045,6.9142,144.63,144.6,28.34564032]
[1728388548255,1.3825981,144.66,144.6,15.4851]
[1728388548455,6.9148,144.62,144.59,30.14964032]
[1728388548769,6.9148,144.62,144.59,37.06564032]
[1728388549472,1.3825981,144.64,144.59,37.06564032]
[1728388549647,8.2968981,144.63,144.59,37.06564032]
[1728388552565,1.3825981,144.63,144.59,37.06564032]
[1728388552758,6.9146,144.62,144.59,37.06564032]
[1728388552951,6.9146,144.62,144.59,24.2051]
[1728388554674,6.9146,144.62,144.59,25.58810191]
[1728388555175,1.5080881,144.65,144.6,21.15914209]
[1728388555468,6.9138,144.64,144.61,12.86054032]
[1728388556048,6.9138,144.64,144.6,21.15914209]
[1728388556788,6.9138,144.64,144.6,6.9156]
[1728388558047,1.5080881,144.65,144.59,24.2051]
[1728388558251,6.9143,144.63,144.59,24.2051]
[1728388561252,6.9143,144.63,144.6,3.93981728]
[1728388561452,6.9143,144.63,144.59,24.2051]
[1728388561684,6.9143,144.63,144.6,3.93981667]
[1728388561854,6.9143,144.63,144.59,24.2051]
[1728388562171,8.2975981,144.62,144.6,3.93982978]
[1728388562352,8.2975981,144.62,144.58,6.9164]
[1728388562553,8.2975981,144.62,144.59,3.94053663]
[1728388562864,8.2975981,144.62,144.6,3.94053663]
[1728388563069,6.9152,144.61,144.58,6.9164]
[1728388563268,6.9152,144.61,144.59,3.94055035]
[1728388563452,6.9152,144.61,144.6,3.94055035]
[1728388564956,6.9159,144.6,144.56,45.66324032]
[1728388565153,6.9159,144.6,144.57,10.85821381]
[1728388565461,6.9159,144.6,144.58,3.94121381]
[1728388565665,6.9159,144.6,144.59,3.94121381]
[1728388566055,6.9159,144.6,144.56,39.7201]
[1728388566260,6.9159,144.6,144.57,3.94171791]
[1728388566453,6.9154,144.61,144.58,3.94171791]
[1728388566658,6.9154,144.61,144.57,8.3001481]
[1728388566857,6.9154,144.61,144.58,3.94198551]
[1728388567075,6.9154,144.61,144.57,8.3001481]
[1728388567281,6.9154,144.61,144.58,3.94194098]
[1728388567465,6.9154,144.61,144.57,8.3001481]
[1728388567760,6.9154,144.61,144.58,3.94210168]
[1728388567966,6.9154,144.61,144.57,8.3001481]
[1728388568165,6.9154,144.61,144.58,3.94209967]
[1728388568360,8.2979981,144.61,144.57,8.3001481]
[1728388568677,8.2968981,144.63,144.59,6.916]
[1728388568975,6.9146,144.62,144.59,6.916]
[1728388569172,1.5080881,144.64,144.59,8.29901733]
[1728388569358,6.9142,144.63,144.59,8.29901733]
[1728388569778,8.2964981,144.64,144.6,6.9155]
[1728388569966,6.9142,144.63,144.6,6.9155]
[1728388571379,6.9142,144.63,144.59,37.06624032]
[1728388571686,6.9142,144.63,144.6,3.94030939]
[1728388571992,1.3825981,144.62,144.58,6.9164]
[1728388572158,6.9152,144.61,144.59,3.94095797]
[1728388572356,6.9152,144.61,144.58,6.9164]
[1728388572558,6.9152,144.61,144.57,6.9166]
[1728388572766,6.9153,144.61,144.57,6.9166]
[1728388572985,8.2978981,144.61,144.57,8.29979568]
[1728388573664,6.9153,144.61,144.57,8.29979568]
[1728388574060,6.9153,144.61,144.57,21.160336]
[1728388574585,6.9153,144.61,144.57,6.9166]
[1728388575277,6.9156,144.6,144.57,6.9166]
[1728388576579,6.9156,144.6,144.58,1.3831853]
[1728388577171,1.3825981,144.62,144.58,1.3831853]
[1728388577370,6.9153,144.61,144.58,1.3831853]
[1728388577970,6.9153,144.61,144.57,21.16031656]
[1728388586886,6.915,144.62,144.58,6.9165]
[1728388587191,6.915,144.62,144.59,5.32477132]
[1728388587383,6.915,144.62,144.59,1.38301655]
[1728388587575,6.915,144.62,144.58,6.9165]
[1728388587777,6.915,144.62,144.59,5.32469752]
[1728388587977,6.915,144.62,144.59,1.38301276]
[1728388589198,6.915,144.62,144.59,8.29901276]
[1728388589675,6.915,144.62,144.6,3.94108149]
[1728388589875,6.915,144.62,144.59,8.29901276]
[1728388590076,6.915,144.62,144.6,3.94154364]
[1728388590369,6.915,144.62,144.59,6.916]
[1728388591172,8.2980981,144.61,144.57,24.2084]
[1728388591505,23.902374,144.63,144.58,3.9418511]
[1728388591506,6.9159,144.6,144.58,3.9418511]
[1728388591822,6.9159,144.6,144.57,17.2915]
[1728388591970,6.9159,144.6,144.58,3.94221095]
[1728388592171,6.9159,144.6,144.57,17.2915]
[1728388592367,6.9159,144.6,144.58,3.94207509]
[1728388592684,6.9153,144.61,144.57,37.06894032]
[1728388592887,6.9153,144.61,144.58,3.94241621]
[1728388593087,6.9153,144.61,144.57,37.06894032]
[1728388593287,6.9153,144.61,144.58,3.94220822]
[1728388593488,6.9153,144.61,144.57,37.06894032]
[1728388593992,6.9153,144.61,144.58,3.94281789]
[1728388594298,6.9153,144.61,144.57,37.06894032]
[1728388594497,6.9153,144.61,144.58,3.94288093]
[1728388594681,6.9153,144.61,144.57,37.06894032]
[1728388595002,6.9153,144.61,144.58,3.94303361]
[1728388595199,6.9156,144.6,144.57,24.2084]
[1728388595498,6.9156,144.6,144.58,3.9431369]
[1728388595678,6.9156,144.6,144.57,24.2084]
[1728388595880,6.9156,144.6,144.58,3.94316645]
[1728388596194,6.9156,144.6,144.57,24.2084]
[1728388596393,6.9156,144.6,144.58,3.9430171]
[1728388596606,6.9156,144.6,144.57,24.2084]
[1728388596802,6.9156,144.6,144.58,3.94298694]
[1728388597097,6.9156,144.6,144.57,24.2084]
[1728388597480,6.9156,144.6,144.58,3.9430001]
[1728388597679,6.9156,144.6,144.57,24.2084]
[1728388597892,6.9156,144.6,144.58,3.94283077]
[1728388598096,6.9156,144.6,144.57,24.2084]
[1728388598398,6.9156,144.6,144.58,3.94266296]
[1728388598602,6.9156,144.6,144.57,17.2915]
[1728388598895,6.9156,144.6,144.58,3.94203935]
[1728388599108,6.9156,144.6,144.59,3.94203935]
[1728388599701,6.9156,144.6,144.57,17.2915]
[1728388599903,6.9156,144.6,144.58,3.94230451]
[1728388600199,6.9156,144.6,144.57,17.2915]
[1728388600378,6.9156,144.6,144.58,3.9422605]
[1728388600578,6.9156,144.6,144.57,17.2915]
[1728388600791,6.9156,144.6,144.58,3.94178861]
[1728388600994,6.9156,144.6,144.57,17.2915]
[1728388601179,6.9156,144.6,144.58,3.94188253]
[1728388601388,6.9156,144.6,144.57,17.2915]
[1728388601691,6.9156,144.6,144.58,3.94183706]
[1728388601885,6.9156,144.6,144.57,17.2915]
[1728388602075,6.9156,144.6,144.58,3.94188444]
[1728388602275,6.9156,144.6,144.57,17.2915]
[1728388602475,6.9156,144.6,144.58,3.94184663]
[1728388602799,6.9156,144.6,144.57,18.67467185]
[1728388602986,6.9156,144.6,144.58,3.94184724]
[1728388603189,6.9152,144.61,144.57,25.59167185]
[1728388603389,6.9152,144.61,144.58,3.94190646]
[1728388603594,6.9152,144.61,144.57,25.59167185]
[1728388604101,6.9152,144.61,144.58,3.94190646]
[1728388604300,6.9152,144.61,144.57,25.59167185]
[1728388604488,6.9152,144.61,144.58,3.94191634]
[1728388604686,6.9152,144.61,144.57,38.45221217]
[1728388604886,6.9152,144.61,144.58,10.85836895]
[1728388605208,6.9142,144.63,144.59,18.67322278]
[1728388605704,6.9142,144.63,144.59,38.4496631]
[1728388606007,6.9137,144.64,144.6,19.77604032]
[1728388606576,1.3825981,144.63,144.59,17.2901]
[1728388606782,0.12549,144.64,144.59,17.2901]
[1728388607083,6.9149,144.62,144.6,3.9402969]
[1728388607287,0.12549,144.64,144.6,1.38293548]
[1728388607604,6.9143,144.63,144.59,24.2061]
[1728388608907,32.0728821,144.65,144.61,6.915]
[1728388609401,25.1594821,144.65,144.6,1.38293445]
[1728388609603,6.9137,144.64,144.6,8.29833445]
[1728388612007,6.9142,144.63,144.6,1.38293445]
[1728388612815,6.9139,144.64,144.6,8.29833445]
[1728388613502,6.9143,144.63,144.6,1.38293445]
[1728388615910,6.9143,144.63,144.59,37.06654032]
[1728388616087,6.9143,144.63,144.6,3.93813028]
[1728388616288,6.9143,144.63,144.59,24.206]
[1728388619611,6.9143,144.63,144.6,1.38290408]
[1728388619809,6.9143,144.63,144.59,24.206]
[1728388620520,6.9151,144.61,144.58,6.9165]
[1728388621902,6.9151,144.61,144.56,45.66344032]
[1728388622093,6.9151,144.61,144.57,23.71559545]
[1728388622295,6.9151,144.61,144.58,9.10116317]
[1728388622500,42.4428821,144.65,144.59,5.16300804]
[1728388622712,6.9156,144.6,144.57,12.86054032]
[1728388622918,6.9156,144.6,144.58,3.93869143]
[1728388623096,6.9156,144.6,144.57,12.86054032]
[1728388623296,6.9156,144.6,144.58,3.93873252]
[1728388623594,6.9156,144.6,144.57,12.86054032]
[1728388623795,6.9156,144.6,144.58,3.93867193]
[1728388624121,6.9156,144.6,144.57,12.86054032]
[1728388624327,6.9156,144.6,144.58,3.93863215]
[1728388624620,6.9156,144.6,144.56,52.58094032]
[1728388624823,6.9156,144.6,144.57,3.93823096]
[1728388625027,6.9156,144.6,144.58,3.93823096]
[1728388625202,6.9156,144.6,144.56,52.58094032]
[1728388625403,6.9156,144.6,144.57,3.93750681]
[1728388625611,6.9156,144.6,144.58,3.93750681]
[1728388625815,6.9156,144.6,144.56,39.7204]
[1728388626006,6.9156,144.6,144.57,3.91345457]
[1728388626205,6.9156,144.6,144.58,3.91345457]
[1728388626408,6.9156,144.6,144.56,52.58094032]
[1728388626607,6.9156,144.6,144.57,3.91344559]
[1728388626811,6.9156,144.6,144.58,3.91344559]
[1728388627096,6.9156,144.6,144.56,52.58094032]
[1728388627302,6.9156,144.6,144.57,3.91349242]
[1728388627611,6.9156,144.6,144.58,3.91343986]
[1728388628013,6.9156,144.6,144.56,52.58094032]
[1728388628215,6.9156,144.6,144.57,5.29668838]
[1728388628425,6.9156,144.6,144.58,3.91349015]
[1728388628603,6.9156,144.6,144.57,14.24373855]
[1728388628897,6.9156,144.6,144.58,3.9134383]
[1728388629102,6.9156,144.6,144.57,14.24373855]
[1728388629308,6.9156,144.6,144.58,3.91353802]
[1728388629611,6.9156,144.6,144.57,14.24373855]
[1728388629907,6.9156,144.6,144.58,3.91349666]
[1728388630111,6.9156,144.6,144.57,14.24373855]
[1728388630314,6.9156,144.6,144.58,3.91349367]
[1728388630616,6.9156,144.6,144.57,14.24373855]
[1728388630798,6.9156,144.6,144.58,3.9129702]
[1728388631133,6.9156,144.6,144.57,14.24373855]
[1728388631303,6.9156,144.6,144.58,3.91294084]
[1728388631503,6.9156,144.6,144.57,21.16073855]
[1728388631703,6.9156,144.6,144.58,3.91294084]
[1728388631907,6.9156,144.6,144.57,21.16073855]
[1728388632222,6.9156,144.6,144.58,3.91317561]
[1728388632419,6.9156,144.6,144.57,21.16073855]
[1728388632611,6.9156,144.6,144.58,3.91316266]
[1728388632816,6.9156,144.6,144.57,21.16073855]
[1728388633002,6.9156,144.6,144.58,3.913141]
[1728388633204,6.9156,144.6,144.57,21.16073855]
[1728388633427,6.9156,144.6,144.58,3.91310633]
[1728388633627,6.9156,144.6,144.57,21.16073855]
[1728388633830,6.9156,144.6,144.58,3.91307292]
[1728388634005,6.9156,144.6,144.57,21.16073855]
[1728388634534,1.3825981,144.63,144.58,3.91309406]
[1728388634706,6.9161,144.59,144.56,39.7203]
[1728388635025,6.9161,144.59,144.57,3.9135568]
[1728388635226,6.9161,144.59,144.57,1.38319234]
[1728388635605,23.902374,144.62,144.57,1.38319234]
[1728388635819,6.9158,144.6,144.57,1.38319234]
[1728388641515,6.9162,144.59,144.56,32.8029]
[1728388641821,6.9158,144.6,144.57,5.29663087]
[1728388642147,6.9158,144.6,144.57,1.38319297]
[1728388642632,1.3825981,144.66,144.6,21.5839]
[1728388642832,6.9131,144.66,144.62,37.06104032]
[1728388643040,6.9131,144.66,144.63,1.3825994]
[1728388643241,6.9124,144.67,144.63,8.2966994]
[1728388644421,6.9124,144.67,144.63,6.9141]
[1728388645333,6.9128,144.66,144.62,37.06114032]
[1728388647240,6.9128,144.66,144.62,24.2006]
[1728388647939,17.40399,144.69,144.6,21.5839]
[1728388647940,1.3825981,144.65,144.6,21.5839]
[1728388648127,1.3825981,144.66,144.61,6.915]
[1728388648332,6.9134,144.65,144.61,6.915]
[1728388650342,6.9134,144.65,144.61,19.77554032]
[1728388652231,6.9134,144.65,144.61,21.15833269]
[1728388652434,6.913,144.66,144.63,19.77464032]
[1728388652642,6.9124,144.67,144.63,21.15724575]
[1728388653445,6.9127,144.66,144.63,12.86054032]
[1728388654048,6.9127,144.66,144.62,19.77494032]
[1728388655736,1.3825981,144.65,144.62,12.86054032]
[1728388656049,6.9133,144.65,144.61,37.06274032]
[1728388656340,6.9142,144.63,144.6,22.2212]
[1728388656538,0.12549,144.65,144.6,22.2212]
[1728388656539,6.9139,144.64,144.6,22.2212]
[1728388658132,1.5080881,144.65,144.6,22.2212]
[1728388658333,6.9142,144.63,144.6,22.2212]
[1728388658529,0.12549,144.65,144.6,15.3058]
[1728388658530,6.9147,144.62,144.6,15.3058]
[1728388658738,6.9143,144.63,144.6,16.68875426]
[1728388658943,6.9143,144.63,144.6,15.3058]
[1728388662062,6.9143,144.63,144.59,19.77654032]
[1728388662278,6.9143,144.63,144.59,6.916]
[1728388662851,6.9143,144.63,144.59,8.29899321]
[1728388663251,6.9143,144.63,144.59,6.916]
[1728388663738,1.3825981,144.62,144.58,30.15104032]
[1728388664047,6.915,144.62,144.59,1.38306612]
[1728388664556,6.915,144.62,144.58,37.06744032]
[1728388664854,6.915,144.62,144.59,1.38304613]
[1728388665057,6.915,144.62,144.58,37.06744032]
[1728388666260,6.915,144.62,144.59,1.38303136]
[1728388667232,6.915,144.62,144.58,24.2069]
[1728388668265,6.915,144.62,144.59,1.38303058]
[1728388672162,8.2977981,144.61,144.58,17.2905]
[1728388672465,6.9152,144.61,144.58,17.2905]
[1728388675570,6.9159,144.6,144.57,15.5036]
[1728388676372,6.9159,144.6,144.57,22.4206]
[1728388677574,6.9152,144.61,144.58,6.9165]